Cogmind - Beta 9.2 @@@ ROGUE MODE // 2019.11.13 @ 14:17:42 Player: Dhoby_Ghaut Result: Destroyed by G-34 Mercenary with Small Laser Performance ------------- Evolutions (0) 0 Regions Visited (1) 200 Robots Destroyed (18) 90 Value Destroyed (382) 382 Prototype IDs (2) 40 Alien Tech Used (0) 0 Bonus (0) 0 TOTAL SCORE: 712 Bonus ------- None Cogmind --------- Core Integrity 0/250 Matter 237/300 Energy 249/250 System Corruption 0% Temperature Cool (6) Movement Rolling (100) Location -10/Materials Parts ------- > --- POWER (1) -------- Ion Engine > --- PROPULSION (2) --- Compact Wheel Compact Wheel > --- UTILITY (2) ------ Small Storage Unit Small Storage Unit > --- WEAPON (2) ------- Light Assault Rifle > --- INVENTORY (8) ---- Compact Wheel Compact Wheel Compact Wheel Improved Heat Sink Improved Terrain Scanner Datajack Mining Claw Peak State ------------ > --- POWER ------------ Ion Engine > --- PROPULSION ------- Wheel Compact Wheel > --- UTILITY ---------- Small Storage Unit Improved Terrain Scanner > --- WEAPON ----------- Assault Rifle Light Assault Rifle > --- INVENTORY -------- Light Ion Engine Light Treads Light Treads Aluminum Leg Aluminum Leg Assault Rifle [Rating: 8] Favorites ----------- Power Ion Engine Engine Ion Engine Propulsion Compact Wheel Wheel Compact Wheel Utility Small Storage Unit Device Improved Terrain Scanner Storage Small Storage Unit Weapon Assault Rifle Energy Gun Backup Laser I Ballistic Gun Assault Rifle Slashing Weapon Mining Claw Build | -11 -10 ------- Run | Scr Mat Slots Evolved . | . . Power . | . . Propulsion . | . . Utility . | . . Weapon . | . . Parts Attached 25 | 7 18 Power 4 | 1 3 Engine 4 | 1 3 Core . | . . Reactor . | . . Propulsion 8 | 2 6 Treads . | . . Leg . | . . Wheel 8 | 2 6 Hover . | . . Flight . | . . Utility 3 | 2 1 Device 1 | 1 . Storage 2 | 1 1 Processor . | . . Hackware . | . . Protection . | . . Artifact . | . . Weapon 10 | 2 8 Energy Gun 2 | . 2 Energy Cannon . | . . Ballistic Gun 6 | 2 4 Ballistic Cannon . | . . Launcher . | . . Special Weapon . | . . Impact Weapon . | . . Slashing Weapon 2 | . 2 Piercing Weapon . | . . Special Melee Weapon . | . . Unidentified Prototypes . | . . Parts Lost 7 | . 7 Power 2 | . 2 Propulsion . | . . Utility . | . . Weapon 5 | . 5 Highest Loss Streak 4 | . 4 Average Slot Usage (%) 98 | . 98 Engine 13 | . 13 Wheel 28 | . 28 Storage 27 | . 27 Energy Gun 3 | . 3 Ballistic Gun 22 | . 22 Slashing Weapon 1 | . 1 Naked Turns . | . . Heaviest Build 17 | 13 17 Greatest Support 32 | 26 32 Greatest Overweight (x) . | . . Average Overweight (x) . | . . Largest Inventory Capacity 8 | 6 8 Average Capacity 7 | 5 7 Most Carried 8 | 6 8 Average Carried 7 | 4 7 Final Capacity 8 | 6 8 Final Carried 7 | 6 7 Class Distribution -------------------- 100% | Mutant Dominant Class ---------------- Mutant | -10/Materials Resources | -11 -10 ----------- Run | Scr Mat Matter Collected 595 | 239 356 Remotely . | . . Salvage Created 480 | 11 469 Parts 33 | 2 31 Haulers Intercepted . | . . Recyclers Shooed . | . . Parts Field Recycled . | . . Retrieved Matter . | . . Parts Self-Destructed . | . . Prevented . | . . Kills | -11 -10 ------- Run | Scr Mat Combat Hostiles Destroyed 17 | . 17 Guns 17 | . 17 Classes Destroyed 3 | 1 2 Tunneler 1 | 1 . Swarmer 9 | . 9 Grunt 8 | . 8 Best Kill Streak 5 | 1 5 Combat Bots Only 5 | . 5 Max Kills in Single Turn 2 | 1 2 Gunslinging 1 | . 1 Exploded . | . . Melee . | . . Uniques/NPCs Destroyed . | . . Combat | -11 -10 -------- Run | Scr Mat Damage Taken 928 | . 928 Core 260 | . 260 Absorbed by Shields . | . . Core Remaining (%) 100 | 100 . Volleys Fired 78 | 1 77 Largest 2 | 2 2 Hottest 60 | 40 60 Shots Fired 132 | 2 130 Gun 132 | 2 130 Cannon . | . . Launcher . | . . Special . | . . Kinetic 113 | 2 111 Thermal 19 | . 19 Explosive . | . . Electromagnetic . | . . Robot Hit Streak 15 | . 15 Robot Miss Streak 3 | 1 3 Penetration Max . | . . Secondary Targets 3 | . 3 Max Gunslinging Chain 1 | . 1 Shots Hit Robots 90 | . 90 Core Hits 31 | 1 30 Critical Hits . | . . Critical Kills . | . . Critical Parts Destroyed . | . . Melee Attacks 12 | . 12 Impact . | . . Slashing 12 | . 12 Piercing . | . . Sneak Attacks . | . . Combat Hostiles . | . . Follow-up Attacks . | . . Damage Inflicted 828 | 11 817 Guns 828 | 11 817 Cannons . | . . Explosions . | . . Melee . | . . Ramming . | . . Kinetic 667 | 11 656 Thermal 161 | . 161 Explosive . | . . Electromagnetic . | . . Impact . | . . Slashing . | . . Piercing . | . . Highest Corruption . | . . Average Corruption . | . . Corruption Purged . | . . Overload Shots . | . . Overflow Damage . | . . Projectiles . | . . Explosions . | . . Melee . | . . Knockbacks . | . . Impact . | . . Kinetic . | . . Secondary . | . . Self-Inflicted Damage . | . . Shots . | . . Rammed . | . . Targets Rammed . | . . Kicked . | . . Crushed . | . . Highest Temperature 44 | . 44 Average Temperature 17 | . 17 Received Heat Transfer 357 | . 357 Siege Activations . | . . Robots Corrupted . | . . Combat Hostiles . | . . Parts Fried . | . . Impact Corruptions . | . . Robots Melted . | . . Combat Hostiles . | . . Parts Melted 3 | . 3 Heat Transferred 484 | . 484 Parts Sabotaged . | . . Parts Stolen . | . . Parts Stripped . | . . Power Chain Reactions . | . . Missiles Intercepted . | . . Alert | -11 -10 ------- Run | Scr Mat Peak Influence 262 | 5 262 Average Influence 78 | . 83 Maximum Alert Level 1 | . 1 Low Security (%) 92 | 100 92 Level 1 7 | . 7 Level 2 . | . . Level 3 . | . . Level 4 . | . . Level 5 . | . . High Security . | . . Max Security . | . . Squads Dispatched 3 | . 3 Investigation 2 | . 2 Extermination . | . . Reinforcement 1 | . 1 Assault . | . . Garrison . | . . Intercept . | . . Construction Impeded . | . . Haulers Reinforced . | . . Stealth | -11 -10 --------- Run | Scr Mat Distress Signals 2 | . 2 Communications Jammed . | . . Distress Signals . | . . Times Spotted 26 | . 26 Peak Tracking Total 6 | . 6 Tactical Retreats 3 | . 3 Traps | -11 -10 ------- Run | Scr Mat Traps Triggered 1 | . 1 Indirectly . | . . Trap Hack Attempts . | . . Triggered . | . . Disarmed . | . . Reprogrammed . | . . Reused . | . . Traps Extracted . | . . Installed . | . . Triggered . | . . Machines | -11 -10 ---------- Run | Scr Mat Machines Disabled . | . . Max in Single Turn . | . . Machines Sabotaged . | . . Garrisons Compromised . | . . Overloaded Fab Kills . | . . Fab Network Shutdowns . | . . Hacking | -11 -10 --------- Run | Scr Mat Machines Accessed 6 | . 6 Terminals 5 | . 5 Fabricators . | . . Repair Stations 1 | . 1 Recycling Units . | . . Scanalyzers . | . . Garrison Access . | . . Total Hacks 16 | . 16 Successful 7 | . 7 Failed 9 | . 9 Catastrophic 1 | . 1 Database Lockouts . | . . Manual 11 | . 11 Terminals 14 | . 14 Fabricators . | . . Repair Stations 2 | . 2 Recycling Units . | . . Scanalyzers . | . . Garrison Access . | . . Terminal Hacks 2 | . 2 Prototype ID Bank 1 | . 1 Zone Layout 1 | . 1 Fabricator Hacks . | . . Repair Station Hacks 1 | . 1 Refit 1 | . 1 Recycling Unit Hacks . | . . Scanalyzer . | . . Garrison Access Hacks . | . . Unauthorized Hacks 13 | . 13 Terminals 4 | . 4 Track 3 | . 3 Disrupt 1 | . 1 Fabricators . | . . Repair Stations . | . . Recycling Units . | . . Scanalyzers . | . . Garrison Access . | . . Data Cores Recovered . | . . Used . | . . Hacking Detections 5 | . 5 Full Trace Events 1 | . 1 Feedback Events . | . . Feedback Blocked . | . . Robot Schematics Acquired . | . . Robots Built . | . . Matter . | . . Time . | . . Total Robot Build Rating . | . . Part Schematics Acquired . | . . Parts Built . | . . Matter . | . . Time . | . . Total Part Build Rating . | . . Parts Repaired . | . . Time . | . . Parts Recycled . | . . Recycled Matter . | . . Retrieved Matter . | . . Retrieved Components . | . . Parts Scanalyzed . | . . Part Schematics Acquired . | . . Parts Damaged . | . . Bothacking | -11 -10 ------------ Run | Scr Mat Used RIF Installer . | . . Robots Hacked . | . . Non-combat . | . . Combat . | . . Robot Hacks Applied . | . . Relay Couplers Released . | . . Robots Rewired . | . . Allies Hacked . | . . Hacks Repelled . | . . Allies | -11 -10 -------- Run | Scr Mat Total Allies . | . . Largest Group . | . . Highest-Rated Group . | . . Highest-Rated Ally . | . . Total Orders . | . . Ally Attacks . | . . Total Damage . | . . Kills . | . . Allies Corrupted . | . . Allies Melted . | . . Intel | -11 -10 ------- Run | Scr Mat Robot Analysis Total . | . . Derelict Logs Recovered . | . . Drone Launches . | . . Drone Recoveries . | . . Exploration | -11 -10 ------------- Run | Scr Mat Turns Passed 844 | 58 786 Spaces Moved 530 | 47 483 Core 6 | 6 . Treads . | . . Legs . | . . Wheels 524 | 41 483 Hover . | . . Flight . | . . Fastest Speed 50 | 50 90 Average Speed 93 | 82 94 Slowest Speed 100 | 90 100 Overloaded Moves . | . . Propulsion Burnouts . | . . Robots Hopped . | . . Cave-ins Triggered . | . . Exploration Rate (%) 41 | 3 79 Regions Visited 1 Branch Regions . Pre-discovered Areas . | . . Known Exits Taken . | . . Unknown Exits Taken 1 | 1 . Scrap Searched . | . . Spaces Dug 8 | . 8 Terrain Destroyed 8 | . 8 Melee 8 | . 8 Projectile . | . . AOE . | . . Actions | -11 -10 --------- Run | Scr Mat Total 733 | 60 673 Wait 60 | . 60 Move 529 | 46 483 Hop . | . . Pick Up 15 | 6 9 Fast Attach 10 | 7 3 Attach 3 | . 3 Detach . | . . Swap 12 | . 12 Drop 14 | . 14 Fire 78 | 1 77 Melee 12 | . 12 Ram . | . . Kick . | . . Crush . | . . Escape Stasis . | . . Rewire . | . . Trap . | . . Miscellaneous . | . . Route ------- -11/Scrapyard -10/Materials (discovered 4 exits: [*Mat x3] / [*Min]) History --------- Turn | Location | Event 12 | -11/Scrapyard | Discovered new exit (range 15) 59 | -11/Scrapyard | Entered Materials 100 | -10/Materials | Discovered new exit (range 7) 303 | -10/Materials | Discovered new exit (range 10) 336 | -10/Materials | Build established: Mutant 350 | -10/Materials | Discovered new exit (range 14) 600 | -10/Materials | Discovered new exit (range 10) 640 | -10/Materials | Core integrity fell below 50% 662 | -10/Materials | Lost 3 parts (1p2w) 798 | -10/Materials | Core integrity fell below 20% 845 | -10/Materials | Destroyed by G-34 Mercenary with Small Laser Last Messages --------------- 00783_ Door malfunctions. 00784_ U-05 Engineer repairs door. 00787_ Dropped Backup Laser I. 00791_ R-06 Scavenger collects Flight Unit. 00794_ R-06 Scavenger collects Backup Laser I. 00795_ Lgt. Ion Engine destroyed. 00800_ Acquired Ion Engine. 00804_ R-06 Scavenger collects Lgt. Assault Rifle. 00807_ Heat Sink melted. 00807_ G-34 Mercenary destroyed. 00810_ R-06 Scavenger collects Aluminum Leg. 00813_ Sml. Laser destroyed. 00819_ Lgt. Assault Rifle destroyed. 00822_ G-34 Mercenary destroyed. 00823_ Acquired 30 matter. 00823_ Acquired 45 matter. 00825_ Acquired Sml. Laser. 00831_ Sml. Laser destroyed. 00834_ Heat Sink melted. 00834_ G-34 Mercenary destroyed. Map ----- +----------------------------------------------------+ | | | | | | | #####################????????????????????????????? | | # #????????????????????????????? | | # #????????????????????????????? | | # #????????????????????????????? | | # #?########???????????????????? | | # #?# #???????????????????? | | ###+######+#########??#= """ #???????????????????? | | ############ R" #???????????????????? | | = = # """ #???????????????????? | | ####+############## < # #???????#???????????? | | # #????????# # #?????? #???????????? | | # !#????????# ###+########## ###########?? | | # """ #????????# ? | | # """ #????????# ? | | # """ #????????# ? | | # """ #????????##############+##########??????? | | # """ #????????# """"""" # #???????????? | | #[ #????????# """"""" # """#???????????? | | # #????????# """"""" # """#???????????? | | #+########????????# """"""" *# """#???????????? | | #??????????????#! """"""" # #???????????? | | T ##########?????# = # #???????????? | | # #?????# =%@ ########???????????? | | #*""" T #?????######g######??????????????????? | | #+## """ #???###### %%% ####??????????????????? | | =+ """ ##### # ""= ??????????????? | | #[= + + # T #########???#######???? | | #= === ### # # #???????????# #???? | | # === #?# # # #???????????# """ #???? | | # === #?# + ## ##???????????# """ #???? | | # !! #?# # ## #????????????# """ #???? | | #####+###### # ## #????????????# #???? | | T # ## #????????????# ""#???? | | ##### ####### ##?########### Y"#???? | | #???# #???" #?# ## ""#???? | | """ #####+####"" #?# """ ## #???? | | """"" # #!! #?# """ ####+####??? | | ^ """"" # #"" < #?# """ # #??? | | """"" # #?| #?# + < #??? | | """ *# #?" ??# """ # #??? | | k %+= #?? ??# """ # #####??# | | #k #??# #??# """ # #??????# | | ##"T"### #??# #??# # #??????# | | ?#####?# #??# #??#+######## ######## | | t?????????# #??# #??# #??????# # | | ????????######/######## #??# #??????# + | | ????????# # #### #??????# # | +----------------------------------------------------+ Best States ------------- Heat Dissipation 25 Energy Generation 10 Energy Capacity 250 Matter Stores 268 Matter Capacity 300 Sight Range 16 Terrain Scan Range 16 Terrain Scan Density 10 Evasion (%) 44 Item Schematics ----------------- None Robot Schematics ------------------ None Fabricated ------------ Nothing Alien Tech Used ----------------- None Achievements -------------- None Challenges ------------ None Game ------ Seed RelaySurgeScrap Manual? 0 Play Time 00:14:20 Cumulative 40.8 hours Start 2019.11.13 @ 13:36:51 End 2019.11.13 @ 14:17:42 Sessions 1 Manual Loads 0 Difficulty Rogue Special Mode None Game No. 31 Rogue 31 Adventurer 0 Explorer 0 Win Type - Total 7 Types 7/0/0/0/0/0/0 Lore% 59 Gallery% 57 Achievement% 42 Wizard Run 0 Options --------- ASCII 0 Keyboard 0 Movement Vi Keybinds 0 Fullscreen 2 Font 14/SmallcapsGlow Map View 72x52 Tactical HUD 1 Map Filters NONE Filters NONE Steam 0 RUN: ec1f32f9-0741-4995-b41b-f0d1d74b431a